bitfinex-derivatives/quotes_ETHF0:USTF0_20251119
["timestamp","ask_amount","ask_price","bid_price","bid_amount"]
[1763562655409,3.2078,3025.8,3024.6,3.2107965]
[1763562655715,3.2078,3025.4,3024.6,3.2107965]
[1763562656110,3.2078,3025.0,3024.6,0.0029965]
[1763562656413,3.2078,3025.1,3024.6,0.0029965]
[1763562656715,3.21275156,3025.5,3024.6,0.0029965]
[1763562656906,0.00495156,3025.5,3024.9,3.2078]
[1763562657101,0.00495156,3025.5,3025.0,0.713]
[1763562657311,0.00331932,3026.3,3025.4,2.64505298]
[1763562657507,0.00331932,3026.3,3025.0,5.05640501]
[1763562657508,3.2078,3027.3,3026.1,5.85285298]
[1763562657709,3.2078,3027.3,3026.5,3.2078]
[1763562657908,3.2078,3027.3,3026.6,3.356]
[1763562658313,0.00495156,3027.3,3027.1,3.2078]
[1763562658615,3.2078,3029.3,3027.2,4.30012849]
[1763562658817,3.2078,3029.3,3028.6,3.2078]
[1763562659007,3.2078,3030.0,3029.2,3.2078]
[1763562659318,3.2078,3030.4,3029.6,3.2078]
[1763562659512,0.00495156,3030.3,3029.7,0.00495156]
[1763562659709,3.2078,3031.7,3030.2,2.64505298]
[1763562660016,3.2078,3030.8,3030.0,3.2078]
[1763562660312,3.2078,3031.2,3030.4,3.2078]
[1763562660515,3.2078,3031.2,3029.9,3.2078]
[1763562660714,3.2078,3030.4,3029.0,3.2078]
[1763562660919,3.2078,3029.5,3028.6,3.2078]
[1763562661122,3.2078,3029.5,3029.1,3.2078]
[1763562661311,3.2078,3029.5,3028.1,4.31678751]
[1763562661312,3.2078,3029.5,3028.9,1.664]
[1763562661513,3.2078,3029.5,3028.4,5.85285298]
[1763562661710,0.00495156,3029.3,3028.8,2.64505298]
[1763562661917,3.2078,3031.3,3029.4,3.9533]
[1763562662211,3.2078,3030.8,3029.6,3.2078]
[1763562662514,3.2078,3031.2,3030.4,3.2078]
[1763562662710,3.2078,3031.2,3030.3,2.687]
[1763562662908,0.00495156,3031.1,3030.8,3.2078]
[1763562663109,0.6616,3033.0,3030.8,3.21175734]
[1763562663411,3.2078,3033.0,3032.4,3.2078]
[1763562663912,3.2078,3032.6,3031.1,3.2078]
[1763562664116,3.2078,3032.6,3030.8,0.00395734]
[1763562664117,3.2078,3031.5,3031.2,3.355]
[1763562664414,0.00495156,3032.2,3031.0,0.00495156]
[1763562664415,3.2078,3031.9,3031.0,0.00495156]
[1763562664617,3.2078,3031.4,3031.0,0.00495156]
[1763562666312,0.00495156,3032.2,3031.0,0.00495156]
[1763562666515,0.00495156,3032.2,3031.6,3.2078]
[1763562666716,3.2078,3032.0,3031.6,3.2078]
[1763562666914,0.00495156,3032.2,3031.7,3.012]
[1763562667116,0.00495156,3032.2,3031.6,3.2078]
[1763562667117,0.00495156,3032.2,3031.8,3.354]
[1763562667308,0.00495156,3032.2,3031.9,3.354]
[1763562667511,0.00495156,3032.2,3031.2,3.9533]
[1763562667718,3.2078,3032.0,3031.3,3.354]
[1763562667915,0.00495156,3032.2,3031.6,3.2078]
[1763562668121,0.00495156,3032.2,3031.7,3.354]
[1763562668421,0.00495156,3032.2,3032.0,3.2078]
[1763562668608,3.2078,3032.9,3032.1,2.64505298]
[1763562668815,3.2078,3032.9,3032.2,2.657]
[1763562669015,3.2078,3032.9,3032.0,3.2078]
[1763562669319,3.2078,3032.1,3031.0,0.00495156]
[1763562669618,3.2078,3031.6,3031.0,0.00495156]
[1763562669819,3.2078,3031.2,3030.2,1.161]
[1763562670013,3.2078,3031.2,3029.7,3.2078]
[1763562670014,3.2078,3030.3,3028.9,3.2078]
[1763562670213,3.2078,3029.8,3028.9,3.2078]
[1763562670417,3.2078,3029.8,3027.6,3.39055298]
[1763562670418,3.2078,3029.2,3027.8,1.107]
[1763562670622,3.2078,3029.5,3028.7,3.2078]
[1763562670820,3.2078,3029.0,3028.8,0.00495156]
[1763562671118,0.00495156,3029.4,3028.8,0.00495156]
[1763562671318,0.00302521,3029.5,3029.3,3.2078]
[1763562671517,0.00302521,3029.5,3028.8,0.00495156]
[1763562671727,3.2078,3029.2,3028.8,0.00495156]
[1763562671917,0.00302521,3029.5,3029.1,3.2078]
[1763562672315,0.00302521,3029.5,3029.0,1.174]
[1763562672821,0.00302521,3029.5,3029.2,3.2078]
[1763562673122,3.2078,3030.4,3029.2,3.2078]
[1763562673519,3.2078,3030.0,3029.3,2.678]
[1763562673816,0.923,3032.2,3029.3,2.678]
[1763562673817,3.2078,3031.0,3029.6,3.2078]
[1763562674024,0.00371036,3031.0,3030.1,5.85285298]
[1763562674222,3.2078,3030.6,3030.0,2.64695156]
[1763562674522,3.2078,3030.6,3030.1,3.353]
[1763562674723,3.21151036,3031.0,3030.1,3.353]
[1763562675024,3.21151036,3031.0,3030.0,0.00495156]
[1763562675220,3.21151036,3031.0,3030.1,3.353]
[1763562675420,3.21151036,3031.0,3030.2,3.2078]
[1763562675721,3.21151036,3031.0,3030.0,0.75045156]
[1763562675915,3.21151036,3031.0,3030.0,0.00495156]
[1763562676120,3.21151036,3031.0,3030.2,3.2078]
[1763562676320,3.2078,3030.6,3030.1,2.677]
[1763562676518,3.21151036,3031.0,3030.2,3.2078]
[1763562677019,3.21151036,3031.0,3030.2,5.85285298]
[1763562677226,3.2078,3031.7,3030.9,3.2078]
[1763562677421,3.2078,3031.7,3031.0,0.00495156]
[1763562677620,3.2078,3031.7,3031.0,1.71195156]
[1763562677926,3.2078,3031.7,3031.3,3.2078]
[1763562678223,3.21113778,3031.7,3030.6,3.353]
[1763562678427,3.2078,3031.6,3030.7,3.2078]
[1763562678620,3.2078,3031.2,3030.8,1.278]
[1763562678825,3.2078,3031.6,3030.8,1.278]
[1763562679028,0.00333778,3031.7,3031.2,3.2078]
[1763562679225,0.00333778,3031.7,3031.2,3.21086063]
[1763562679420,0.00333778,3031.7,3031.2,0.00306063]
[1763562679624,0.00333778,3031.7,3031.4,3.2078]
[1763562679924,2.64505298,3033.4,3031.4,3.2078]
[1763562679925,3.2078,3033.3,3031.6,0.7455]
[1763562680229,3.2078,3033.7,3033.2,3.2078]
[1763562680421,3.2078,3034.2,3033.3,3.352]
[1763562680824,0.00289645,3034.2,3033.8,3.9533]
[1763562681024,0.00289645,3034.2,3033.9,3.352]
[1763562681224,0.00289645,3034.2,3033.8,3.21176354]
[1763562681424,0.00289645,3034.2,3033.9,3.074]
[1763562681425,3.21069645,3034.2,3033.9,3.074]
[1763562681636,3.21069645,3034.2,3033.8,0.00396354]
[1763562682233,3.21069645,3034.2,3033.4,0.00495156]
[1763562682234,1.06872,3033.9,3033.4,0.00495156]
[1763562682430,3.2078,3033.5,3032.7,0.882]
[1763562682733,3.2078,3033.5,3032.8,3.2]
[1763562682937,0.00289645,3034.2,3033.1,3.2078]
[1763562682938,3.2078,3034.1,3033.1,3.2078]
[1763562683232,3.2078,3034.1,3033.1,0.00290131]
[1763562683433,3.2078,3033.6,3033.3,0.00495156]
[1763562683925,1.06886,3033.5,3032.2,3.2078]
[1763562684120,3.2078,3033.1,3032.2,5.6178]
[1763562684932,3.2078,3033.5,3032.6,3.2078]
[1763562685127,3.2078,3033.5,3033.0,3.2078]
[1763562685327,3.2078,3033.5,3032.6,3.2078]
[1763562685529,3.2078,3033.5,3032.7,3.351]
[1763562685829,0.00495156,3033.9,3033.2,3.2078]
[1763562686037,3.2078,3034.1,3033.2,3.2078]
[1763562686337,0.00289645,3034.2,3033.9,3.2078]
[1763562686835,0.00289645,3034.2,3033.2,3.2078]
[1763562687036,0.00289645,3034.2,3033.3,3.35]
[1763562687239,3.21275156,3034.1,3033.2,3.2078]
[1763562687531,3.74708156,3034.1,3032.7,3.2078]
[1763562687832,3.2078,3033.6,3032.7,4.6128]
[1763562688031,3.2078,3033.2,3032.7,3.2078]
[1763562688630,3.2078,3033.2,3032.3,0.00495156]
[1763562688834,6.5046,3033.2,3032.3,0.00495156]
[1763562689135,1.06926,3032.4,3031.4,3.2078]
[1763562689330,3.2078,3032.9,3032.2,3.2078]
[1763562689536,3.2078,3033.4,3031.7,3.2078]
[1763562689837,3.2078,3033.4,3031.8,3.35]
[1763562690033,3.21275156,3032.9,3032.3,0.00495156]
[1763562690233,3.2078,3032.4,3032.3,0.00495156]
[1763562690927,4.27692,3032.8,3032.3,0.00495156]
[1763562691131,0.00495156,3032.9,3032.4,3.2078]
[1763562691328,3.2078,3033.4,3032.4,3.2078]
[1763562691833,3.2078,3033.4,3032.5,1.381]
[1763562692033,3.2078,3033.8,3033.1,3.2078]
[1763562692434,3.2078,3033.4,3032.7,3.9322]
[1763562692632,3.21275156,3033.8,3033.2,3.2078]
[1763562692936,3.21275156,3033.8,3032.7,1.682]
[1763562692937,0.00495156,3033.8,3033.1,3.2078]
[1763562693135,0.00495156,3033.8,3033.4,3.2078]
[1763562693936,0.00495156,3033.8,3033.0,3.2078]
[1763562694144,3.2078,3033.5,3032.7,3.349]
[1763562694440,3.2078,3033.1,3032.1,3.2078]
[1763562694637,3.2078,3032.7,3031.7,5.0058]
[1763562694835,1.72558543,3033.8,3032.7,0.7244]
[1763562694836,3.2078,3033.5,3032.7,0.7244]
[1763562695139,0.00289645,3034.2,3032.7,0.7244]
[1763562695140,0.00289645,3034.2,3033.4,3.2078]
[1763562695330,0.00289645,3034.2,3034.1,3.2078]
[1763562695644,0.00289645,3034.2,3034.1,0.00342595]
[1763562695832,0.00289645,3034.2,3032.9,0.669]
[1763562696143,3.2078,3033.5,3033.2,0.00495156]
[1763562696732,3.2078,3033.5,3033.2,0.00869146]
[1763562696933,3.29600001,3033.4,3031.3,11.877]
[1763562697132,3.2078,3032.6,3031.8,3.2078]
[1763562697445,3.2078,3032.6,3031.8,6.5568]
[1763562697736,3.2078,3032.2,3031.4,3.2078]
[1763562697936,0.00495156,3032.1,3031.5,0.00495156]
[1763562698136,0.00495156,3032.1,3031.5,2.62695156]
[1763562698335,3.2078,3031.8,3031.5,0.00495156]
[1763562698534,3.21124733,3031.8,3031.5,0.00495156]
[1763562699340,0.00344733,3031.8,3031.5,0.00495156]
[1763562699838,0.00344733,3031.8,3031.7,3.2078]
[1763562700032,3.2078,3032.6,3031.7,6.35045885]
[1763562700231,3.2078,3032.6,3032.1,3.2078]
[1763562700441,3.2078,3032.6,3032.2,3.349]
[1763562700839,3.2078,3032.6,3031.7,3.2078]
[1763562701043,1.06944,3031.9,3030.8,3.2078]
[1763562701241,3.2078,3031.0,3030.1,3.2078]
[1763562701538,3.2078,3030.6,3029.7,6.4418]
[1763562701742,3.2078,3030.6,3029.7,3.2078]
[1763562701944,3.2078,3030.6,3029.7,6.5568]
[1763562702248,0.00495156,3030.5,3029.9,3.14265885]
[1763562702545,0.00495156,3030.5,3030.4,3.2078]
[1763562702736,0.00495156,3030.5,3030.0,6.5568]
[1763562702937,0.00495156,3030.5,3030.0,3.2078]
[1763562703146,0.00495156,3030.5,3030.1,3.349]
[1763562703339,3.2078,3030.3,3029.8,0.00495156]
[1763562703549,3.21031314,3030.3,3029.8,0.00495156]
[1763562704544,3.2078,3029.9,3029.8,0.00495156]
[1763562705442,3.30000001,3029.8,3028.3,3.2078]
[1763562705642,3.2078,3028.9,3028.2,3.35]
[1763562705830,0.6666,3030.0,3028.4,3.2078]
[1763562705831,3.2078,3029.3,3028.4,3.2078]
[1763562706144,3.2078,3029.8,3029.1,3.2078]
[1763562706343,3.2078,3029.8,3029.1,3.21519889]
[1763562706644,3.21275156,3029.8,3029.1,0.00739889]
[1763562706833,3.2078,3029.3,3029.1,0.00739889]
[1763562707639,3.2078,3029.3,3028.3,3.2078]
[1763562707839,3.2078,3028.8,3028.3,3.2078]
[1763562708548,3.2078,3029.2,3028.4,3.35]
[1763562708847,1.07024,3029.6,3028.5,0.00495156]
[1763562708848,3.2078,3028.8,3028.5,0.00495156]
[1763562709650,3.2078,3029.5,3028.7,3.2078]
[1763562709945,0.00251314,3030.3,3030.0,0.7244]
[1763562710142,3.2078,3031.7,3030.2,6.35045885]
[1763562710338,3.2078,3032.1,3031.0,3.2078]
[1763562710544,3.2078,3032.1,3031.4,6.35045885]
[1763562710745,3.2078,3033.1,3031.9,3.2078]
[1763562710948,3.2078,3033.1,3032.4,3.2078]
[1763562711147,0.00495156,3032.8,3032.4,3.21077025]
[1763562711347,3.2078,3032.7,3032.4,0.00297025]
[1763562711549,3.8994,3032.7,3032.4,0.00297025]
[1763562712346,3.8994,3032.7,3032.2,0.00495156]
[1763562712657,3.2078,3032.3,3032.2,0.00495156]
[1763562713149,3.2078,3032.3,3031.7,0.773]
[1763562713353,3.2078,3032.3,3031.7,0.77698909]
[1763562713550,3.2078,3032.3,3031.7,0.00398909]
[1763562713754,4.96854,3032.7,3031.7,0.00398909]
[1763562713955,3.8994,3032.7,3031.9,3.21275156]
[1763562714257,0.00495156,3032.8,3032.4,3.2078]
[1763562714656,0.00495156,3032.8,3032.5,3.35]
[1763562715058,0.00495156,3032.8,3032.5,9.35]
[1763562715353,3.2078,3034.3,3032.6,7.3856638]
[1763562715652,3.8589,3035.0,3034.2,3.2078]
[1763562715856,3.2078,3035.0,3034.6,3.2078]
[1763562716048,3.2078,3035.0,3034.3,3.35]
[1763562716251,0.00728709,3035.0,3034.6,3.2078]
[1763562716553,3.2078,3036.5,3034.6,3.2078]
[1763562716751,3.2078,3035.9,3035.0,3.2078]
[1763562717063,3.2078,3035.9,3034.8,2.797]
[1763562717359,3.2078,3035.9,3035.0,3.2078]
[1763562717554,0.00493157,3035.8,3035.0,3.2078]
[1763562717750,0.00322889,3035.9,3035.1,3.2078]
[1763562717957,0.00322889,3035.9,3034.3,0.00872072]
[1763562717958,0.00322889,3035.9,3034.6,3.2078]
[1763562718253,3.2078,3035.6,3034.3,0.00872072]
[1763562718453,3.2078,3035.6,3034.6,3.2078]
[1763562718854,3.2078,3035.1,3034.3,0.00872072]
[1763562719048,3.2078,3035.5,3034.3,0.00872072]
[1763562719250,3.2078,3035.5,3034.6,3.2078]
[1763562719555,3.8994,3034.9,3034.3,0.00872072]
[1763562719758,0.6916,3034.9,3034.7,3.2078]
[1763562719953,3.2078,3035.3,3034.7,3.2078]
[1763562720458,3.2078,3035.3,3034.3,0.00872072]
[1763562720459,3.2078,3035.3,3034.3,3.21652072]
[1763562720654,3.2078,3034.8,3034.3,3.21652072]
[1763562720861,3.2078,3035.2,3034.3,3.21652072]
[1763562721051,3.2078,3034.8,3034.3,3.21652072]
[1763562721250,3.2078,3035.3,3034.7,3.2078]
[1763562721660,3.2078,3035.3,3033.9,3.2078]
[1763562721661,3.2078,3034.8,3033.9,3.2078]
[1763562721856,3.2078,3034.3,3033.5,3.2078]
[1763562722053,3.2078,3033.9,3032.9,3.2078]
[1763562722655,0.00494299,3033.7,3033.1,0.00494299]
[1763562722860,3.2078,3033.2,3033.1,0.00494299]
[1763562723057,3.2078,3033.2,3032.1,3.2078]
[1763562723253,3.2078,3032.8,3031.4,3.2078]
[1763562723456,3.2078,3031.8,3030.5,3.14265885]
[1763562723651,3.2968,3033.2,3030.2,2.263]
[1763562723652,3.2078,3030.9,3030.2,2.263]
[1763562723863,3.2078,3030.9,3030.0,3.9322]
[1763562724063,0.00494299,3030.8,3030.1,0.00494299]
[1763562724267,0.00494299,3030.8,3030.4,3.2078]
[1763562724458,3.2078,3032.0,3030.4,6.5558]
[1763562724654,3.2078,3032.0,3031.3,3.2078]
[1763562724864,3.2078,3032.5,3031.9,3.2078]
[1763562725160,3.2078,3032.5,3031.4,4.35888547]
[1763562725360,0.00494299,3032.3,3031.9,3.2078]
[1763562725662,0.00840145,3032.3,3031.9,3.2078]
[1763562726062,0.00840145,3032.3,3031.6,0.00494299]
[1763562726562,3.2078,3031.7,3031.6,0.00494299]
[1763562727258,3.21620145,3032.3,3031.6,0.00494299]
[1763562727967,3.2078,3031.9,3031.6,0.00494299]
[1763562728561,3.2078,3031.9,3030.2,3.2078]
[1763562728864,3.2078,3031.9,3030.0,0.72867397]
[1763562728865,3.2078,3031.5,3030.0,3.93647397]
[1763562729057,3.2078,3031.5,3030.4,6.5558]
[1763562729260,3.2078,3030.7,3030.4,3.348]
[1763562729459,3.2078,3031.1,3030.4,3.348]
[1763562729859,3.2078,3031.5,3030.4,3.348]
[1763562730160,0.5347,3032.0,3030.4,3.348]
[1763562730161,3.2078,3031.1,3030.4,3.348]
[1763562730470,3.2078,3030.5,3030.2,0.00494299]
[1763562731369,3.30000001,3030.4,3028.5,3.2078]
[1763562731559,3.2078,3029.3,3028.5,3.2078]
[1763562731866,3.2078,3028.9,3028.1,15.0868]
[1763562732070,3.2078,3028.9,3028.1,3.2078]
[1763562732363,0.00495148,3028.8,3028.2,0.00495148]
[1763562732968,0.00495148,3028.8,3028.3,0.6858]
[1763562733172,3.2078,3029.4,3028.7,3.2078]
[1763562733463,1.47273387,3031.6,3028.3,0.6858]
[1763562733464,3.2078,3030.1,3029.1,3.2078]
[1763562733967,3.2078,3031.4,3030.0,6.35045885]
[1763562734191,0.00409835,3031.4,3031.2,3.14265885]
[1763562734467,3.2078,3032.4,3031.3,11.5448]
[1763562734664,3.2078,3032.4,3031.2,3.35]
[1763562734871,3.2078,3032.4,3031.5,3.2078]
[1763562735167,0.00495148,3032.3,3031.5,3.2078]
[1763562735362,0.00767245,3032.3,3031.5,3.21113395]
[1763562735669,3.2078,3031.9,3031.5,0.00333395]
[1763562735862,9.2078,3031.9,3030.6,3.2078]
[1763562736064,3.2078,3031.5,3030.6,3.2078]
[1763562737068,3.2078,3031.9,3031.3,3.2078]
[1763562737368,1.06938,3032.0,3031.5,3.2078]
[1763562737557,3.2078,3032.1,3031.5,3.2078]
[1763562737763,0.00767245,3032.3,3032.0,3.2078]
[1763562738872,3.2078,3033.9,3032.1,3.14265885]
[1763562739168,3.2078,3033.8,3032.7,3.2078]
[1763562739367,3.2078,3033.3,3032.2,6.0288]
[1763562739562,3.2078,3032.8,3032.2,6.0288]
[1763562739759,3.2078,3033.2,3032.2,6.0288]
[1763562739963,3.2078,3032.8,3032.2,6.03375148]
[1763562740174,3.2078,3032.3,3032.2,0.00495148]
[1763562741361,3.21053308,3033.2,3032.2,0.00495148]
[1763562741562,0.00273308,3033.2,3032.8,3.2078]
[1763562741765,3.2078,3034.8,3032.8,3.21025532]
[1763562741967,3.2078,3034.8,3034.1,3.2078]
[1763562742164,3.2078,3034.8,3034.1,0.00494323]
[1763562742372,3.2078,3035.3,3034.6,3.2078]
[1763562742668,3.21012452,3035.3,3034.6,3.2078]
[1763562742866,0.00232452,3035.3,3035.2,3.2078]
[1763562743070,3.2078,3036.8,3035.2,5.34153594]
[1763562743273,3.2078,3036.8,3035.7,0.00494323]
[1763562743464,3.2078,3036.4,3035.7,0.00494323]
[1763562743860,3.2078,3035.9,3035.2,0.00373594]
[1763562744075,3.2078,3035.5,3034.8,3.2078]
[1763562744262,0.3458,3037.2,3034.8,3.8499]
[1763562744263,3.2078,3036.3,3034.8,3.8499]
[1763562744468,3.2078,3036.4,3035.4,3.2078]
[1763562744668,3.2078,3035.9,3035.0,3.2078]
[1763562744876,0.00491857,3035.8,3035.1,0.00494323]
[1763562745064,0.00776161,3035.8,3035.1,0.00732872]
[1763562745265,3.2078,3037.3,3035.6,3.2078]
[1763562745568,3.2078,3037.2,3036.2,3.2078]
[1763562745770,3.2078,3037.2,3036.3,3.2078]
[1763562745971,3.2078,3037.2,3036.0,0.6421]
[1763562746269,3.2078,3037.0,3035.9,3.2078]
[1763562746570,0.00379789,3037.2,3036.4,3.2078]
[1763562746762,0.00379789,3037.2,3036.8,3.2078]
[1763562746971,0.00379789,3037.2,3036.4,3.2078]
[1763562747170,0.00379789,3037.2,3036.3,3.21274323]
[1763562747373,3.2078,3037.1,3036.3,0.00494323]
[1763562747774,4.27913789,3037.2,3036.4,3.2078]
[1763562748165,3.2078,3038.4,3036.8,3.2078]
[1763562748373,0.3483,3039.3,3036.5,17.43104735]
[1763562748374,3.2078,3039.3,3038.2,3.2078]
[1763562748567,3.2078,3039.3,3038.1,3.2078]
[1763562748770,3.2078,3039.3,3038.4,0.00494323]
[1763562748975,3.2078,3039.3,3038.5,3.2078]
[1763562749189,0.00293177,3039.3,3038.9,3.2078]
[1763562749567,3.2078,3040.4,3038.9,3.2078]
[1763562749874,1.12693387,3042.8,3040.1,3.2078]
[1763562749875,3.2078,3040.9,3040.1,3.2078]
[1763562750082,3.2078,3041.3,3040.6,3.2078]
[1763562750371,1.06572,3042.4,3041.0,3.2078]
[1763562750571,1.06861655,3042.4,3041.8,3.2078]
[1763562750767,1.06861655,3042.4,3041.0,0.00424356]
[1763562750768,3.2078,3042.1,3041.0,0.00424356]
[1763562750969,3.2078,3042.1,3040.0,11.869]
[1763562750970,3.2078,3041.2,3039.5,3.2078]
[1763562751168,3.2078,3039.8,3038.7,3.2078]
[1763562751573,3.2078,3040.9,3039.7,3.2078]
[1763562751972,0.00404795,3040.9,3040.7,3.2078]
[1763562752172,0.00490555,3041.1,3040.7,3.8355]
[1763562752765,0.00490555,3041.1,3040.7,3.2078]
[1763562752971,0.00490555,3041.1,3040.9,3.2078]
[1763562753166,0.00823365,3041.1,3040.9,3.2078]
[1763562753479,0.53279,3042.8,3041.0,13.65763915]
[1763562753777,3.2078,3042.5,3041.7,3.2078]
[1763562753968,3.2078,3042.5,3041.2,3.2078]
[1763562754169,3.2078,3042.0,3041.2,3.2078]
[1763562754369,0.00406058,3042.0,3041.3,3.21273454]
[1763562754767,0.00406058,3042.0,3041.7,3.2078]
[1763562755572,0.00406058,3042.0,3041.3,0.00493454]
[1763562756570,3.2078,3041.8,3041.2,2.39542754]
[1763562756775,3.2078,3041.3,3040.7,0.6277]
[1763562757074,3.2078,3041.8,3040.7,0.6277]
[1763562757274,0.00406058,3042.0,3040.7,0.6277]
[1763562757275,3.2078,3040.9,3040.7,0.6277]
[1763562757476,3.2078,3040.9,3039.7,3.21084971]
[1763562757679,3.2078,3040.5,3040.0,0.00493454]
[1763562758081,0.00493454,3040.6,3040.0,0.00493454]
[1763562758284,3.2078,3040.4,3040.0,0.00493454]
[1763562758489,3.21273454,3040.6,3040.0,0.00493454]
[1763562759369,0.00493454,3040.6,3040.0,0.00493454]
[1763562759571,0.00493454,3040.6,3040.2,3.2078]
[1763562759782,3.21273454,3040.6,3040.0,0.00493454]
[1763562760180,3.2078,3040.1,3038.8,3.2078]
[1763562760485,3.2888,3040.5,3036.8,1.06766]
[1763562760486,3.2078,3039.0,3038.2,3.2078]
[1763562760786,3.2078,3038.6,3037.5,3.2078]
[1763562760979,3.2078,3038.2,3037.5,3.2078]
[1763562761181,3.21699354,3038.2,3037.5,3.21542032]
[1763562762281,0.00919354,3038.2,3038.1,0.6277]
[1763562762781,0.00919354,3038.2,3037.5,0.00762032]
[1763562762980,0.00919354,3038.2,3038.1,0.6277]
[1763562763285,0.00919354,3038.2,3037.5,0.00762032]
[1763562763676,3.2078,3037.9,3037.5,0.00762032]
[1763562763876,0.00919354,3038.2,3037.5,0.00762032]
[1763562764074,3.2078,3037.9,3037.5,0.00762032]
[1763562764276,1.0674,3037.6,3036.4,3.2078]
[1763562764485,3.2078,3037.0,3036.4,3.2078]
[1763562765083,3.2078,3036.6,3035.7,3.2078]
[1763562765287,3.2078,3036.2,3035.8,0.00493454]
[1763562765883,10.27572,3036.2,3034.6,3.2078]
[1763562766198,3.2078,3036.3,3035.6,3.2078]
[1763562766491,3.2078,3036.3,3035.2,3.2078]
[1763562766690,3.2078,3035.8,3034.3,2.63370804]
[1763562766892,0.00493454,3036.5,3035.0,0.00493454]
[1763562767088,3.2078,3037.5,3035.9,3.2078]
[1763562767281,3.2078,3036.3,3035.1,3.2078]
[1763562767992,4.54e-06,3036.0,3035.9,3.2078]
[1763562768185,0.6616,3038.1,3035.9,3.2078]
[1763562768390,3.2078,3037.9,3036.8,3.2078]
[1763562768698,3.2078,3037.5,3036.4,3.2078]
[1763562768994,0.00318369,3037.5,3036.8,3.2078]
[1763562769191,0.00811823,3037.5,3037.2,3.2078]
[1763562769392,0.00811823,3037.5,3037.2,3.21151028]
[1763562769893,0.00811823,3037.5,3037.2,0.00371028]
[1763562770093,0.00811823,3037.5,3037.2,3.21151028]
[1763562770292,3.2078,3038.3,3037.2,3.21151028]
[1763562770495,3.2078,3037.9,3037.2,0.00371028]
[1763562770792,3.2078,3038.7,3037.5,3.2078]
[1763562770987,3.2078,3038.7,3037.9,3.2078]
[1763562771184,0.00493454,3038.6,3038.3,3.2078]
[1763562771386,3.2078,3040.4,3038.4,0.6277]
[1763562771591,2.87741238,3040.4,3039.5,2.63370804]
[1763562771792,3.2078,3041.6,3040.1,3.2078]
[1763562772094,3.2078,3041.4,3040.7,3.2078]
[1763562772295,3.21036789,3041.4,3040.7,0.00748534]
[1763562772694,3.2078,3040.8,3040.7,0.00748534]
[1763562772899,3.2078,3041.2,3040.7,0.00748534]
[1763562773193,3.2078,3041.2,3039.9,3.2078]
[1763562773498,3.2078,3040.8,3039.9,3.2078]
[1763562774099,4.27395,3041.2,3039.9,3.2078]
[1763562774288,3.2078,3040.8,3040.2,0.00493454]
[1763562774482,3.2078,3040.4,3039.9,0.00398446]
[1763562775088,3.2078,3040.0,3038.8,4.5278]
[1763562775290,3.2078,3039.4,3038.2,3.2078]
[1763562775591,0.00493454,3039.1,3038.5,0.00493454]
[1763562776096,0.00726992,3039.1,3038.5,0.00830985]
[1763562778592,3.2078,3038.9,3038.5,0.00830985]
[1763562779398,3.2904,3038.8,3037.5,3.2078]
[1763562779600,3.2078,3038.3,3037.5,3.2078]
[1763562780193,3.2078,3037.8,3037.2,3.382]
[1763562780394,3.2078,3038.9,3037.7,3.2078]
[1763562780590,0.00726992,3039.1,3038.6,3.2078]
[1763562780790,3.2078,3040.5,3039.0,3.2078]
[1763562780989,3.2078,3040.5,3040.1,3.2078]
[1763562781190,3.2078,3040.5,3039.7,3.2078]
[1763562781401,3.2078,3040.5,3040.1,3.2078]
[1763562781600,3.2078,3041.9,3040.2,1.433]
[1763562781805,3.2078,3041.9,3041.2,3.2078]
[1763562782301,3.2078,3041.9,3040.6,3.2078]
[1763562782602,2.63370804,3043.0,3041.5,3.2078]
[1763562782603,3.2078,3042.6,3041.5,3.2078]
[1763562782797,0.00344513,3042.3,3041.9,3.2078]
[1763562783099,0.00493454,3042.2,3041.8,3.2078]
[1763562783494,0.5327,3043.3,3041.8,3.2078]
[1763562783697,3.74049,3043.4,3042.6,3.2078]
[1763562783892,3.2078,3043.4,3042.6,3.2078]
[1763562784195,1.68409888,3044.8,3042.6,3.2078]
[1763562784196,3.2078,3044.3,3043.2,0.6835]
[1763562784396,3.2078,3045.3,3044.2,3.2078]
[1763562784604,3.21074471,3045.3,3044.6,3.2078]
[1763562784796,3.2078,3044.9,3044.2,0.00351934]
[1763562785100,3.2078,3045.0,3044.2,0.00351934]
[1763562785304,0.00294471,3045.3,3044.5,3.2078]
[1763562785698,0.00294471,3045.3,3045.0,3.2078]
[1763562786201,3.2078,3046.7,3045.1,6.0]
[1763562786404,3.2078,3046.7,3046.0,3.2078]
[1763562786601,3.2078,3046.2,3045.0,3.2078]
[1763562786793,3.2078,3045.9,3044.6,3.2078]
[1763562786999,3.2078,3045.8,3044.6,3.2078]
[1763562787199,0.00336599,3045.9,3045.5,3.2078]
[1763562787508,0.00336599,3045.9,3045.6,1.82]
[1763562787706,0.00489871,3046.1,3045.6,1.82]
[1763562788004,0.00489871,3046.1,3046.0,3.2078]
[1763562788600,4.27146,3048.4,3046.0,11.84150804]
[1763562788804,3.2078,3048.9,3047.9,3.2078]
[1763562789200,3.2078,3048.1,3047.2,3.2078]
[1763562789401,3.2078,3048.5,3047.2,3.2078]
[1763562789602,0.00424946,3048.5,3048.2,3.2078]
[1763562789995,0.6918,3050.4,3048.4,2.63370804]
[1763562790203,3.2078,3050.0,3049.3,3.2078]
[1763562790409,3.2078,3049.6,3049.1,0.00492627]
[1763562790597,3.2078,3049.6,3043.7,2.33052887]
[1763562790598,1.0633,3049.4,3048.3,3.2078]
[1763562790803,3.2078,3049.7,3048.3,3.2078]
[1763562791000,3.2078,3049.7,3049.1,3.2078]
[1763562791001,0.0041996,3049.7,3049.1,3.2078]
[1763562791202,3.2078,3050.5,3049.5,3.2078]
[1763562791401,3.2078,3050.5,3050.0,3.2078]
[1763562791604,0.00489882,3050.6,3050.0,3.2078]
[1763562791806,0.00489882,3050.6,3050.1,3.18]